bitfinex/quotes_ETHUSD_20250630
["timestamp","ask_amount","ask_price","bid_price","bid_amount"]
[1751298754576,1.34831851,2474.1,2474.0,0.7747]
[1751298754739,4.04125522,2474.5,2474.0,0.7747]
[1751298755165,4.04100132,2474.7,2474.0,4.81669517]
[1751298755362,5.39162835,2474.8,2474.1,4.04183169]
[1751298755550,4.04121802,2474.6,2474.1,7.191]
[1751298755946,5.37652819,2474.7,2474.1,7.191]
[1751298755947,4.0412231,2474.5,2474.1,7.191]
[1751298756158,4.0412231,2474.5,2473.7,4.04248226]
[1751298756159,1.33563435,2474.7,2473.7,0.7949]
[1751298756360,4.0419537,2474.1,2473.8,7.191]
[1751298756561,4.04212806,2474.0,2473.7,7.9859]
[1751298756754,4.04229335,2473.9,2473.7,0.7949]
[1751298756949,4.04252738,2473.7,2473.3,0.8235]
[1751298757149,4.04284053,2473.6,2473.3,0.8235]
[1751298757443,4.04284053,2473.6,2473.0,5.17730522]
[1751298757444,4.04316475,2473.4,2473.0,10.2974334]
[1751298757749,4.04325903,2473.3,2473.0,3.1064334]
[1751298757953,4.04325903,2473.3,2473.0,10.2974334]
[1751298758274,1.90280135,2475.9,2473.2,4.59319817]
[1751298758275,4.04090816,2474.7,2473.2,4.59319817]
[1751298758474,10.0,2474.4,2473.4,0.55]
[1751298758772,4.04188535,2474.1,2473.4,10.55]
[1751298758973,4.04188535,2474.1,2473.4,14.59294138]
[1751298759375,0.814,2474.7,2473.7,0.55]
[1751298759676,0.814,2474.7,2473.7,7.741]
[1751298759677,4.04174715,2474.2,2473.7,7.741]
[1751298760046,4.04190482,2474.1,2473.7,7.741]
[1751298760249,4.04163944,2474.3,2473.7,7.741]
[1751298760476,4.04146811,2474.4,2473.7,11.78351362]
[1751298760866,4.04156246,2474.3,2473.7,7.741]
[1751298761174,4.04195402,2474.1,2473.7,7.741]
[1751298761549,4.0417708,2474.2,2473.7,7.741]
[1751298761743,4.04122044,2474.5,2473.7,7.741]
[1751298761977,4.04175209,2474.2,2473.7,9.2080181]
[1751298762380,4.04163015,2474.3,2473.7,9.2080181]
[1751298762562,4.04171399,2474.2,2473.7,9.2080181]
[1751298762971,4.04163877,2474.3,2473.7,13.25053535]
[1751298763372,4.04163877,2474.3,2473.7,9.2080181]
[1751298764001,4.04171045,2474.2,2473.8,7.19]
[1751298764201,4.04162549,2474.3,2473.8,7.19]
[1751298764584,4.05146219,2474.4,2473.8,7.19]
[1751298764749,4.04155169,2474.3,2473.8,7.19]
[1751298765463,4.05139164,2474.4,2473.8,7.19]
[1751298765464,4.05143501,2474.4,2473.8,7.19]
[1751298765652,4.04155637,2474.3,2473.8,7.19]
[1751298766283,4.05145719,2474.4,2473.8,7.19]
[1751298766457,4.04171858,2474.2,2473.8,7.19]
[1751298766795,0.01,2474.4,2473.8,7.19]
[1751298766952,4.04187248,2474.2,2473.8,7.19]
[1751298767152,4.04188076,2474.1,2473.8,7.19]
[1751298769154,0.41512287,2474.4,2473.8,7.19]
[1751298769155,4.04178687,2474.2,2473.8,7.19]
[1751298769686,4.04172423,2474.2,2473.8,7.19]
[1751298769859,4.04162949,2474.3,2473.8,7.19]
[1751298770060,4.05141527,2474.4,2473.9,0.55]
[1751298770061,0.01,2474.4,2473.9,0.55]
[1751298770252,0.01,2474.4,2473.7,10.0]
[1751298770458,0.01,2474.4,2474.1,0.55]
[1751298770655,0.01,2474.4,2474.2,7.189]
[1751298770857,4.05146108,2474.4,2474.2,7.189]
[1751298771266,4.05142833,2474.4,2473.8,0.831]
[1751298771467,0.01,2474.4,2474.3,4.0415471]
[1751298771680,0.01,2474.4,2474.3,9.17515471]
[1751298771861,0.01,2474.4,2474.3,13.21670181]
[1751298772062,0.01,2474.4,2474.3,8.5471]
[1751298772486,0.01,2474.4,2474.3,12.5886471]
[1751298773059,0.01,2474.4,2474.3,14.6496471]
[1751298773272,0.01,2474.4,2474.3,1.3581]
[1751298773466,0.01,2474.4,2474.3,8.5461]
[1751298773690,0.01,2474.4,2474.3,16.11353749]
[1751298773898,0.01,2474.4,2474.3,14.6486471]
[1751298774696,0.01,2474.4,2474.3,10.6071]
[1751298775259,0.01,2474.4,2474.3,14.6486471]
[1751298777373,0.01,2474.4,2474.3,10.6071]
[1751298777569,0.01,2474.4,2474.3,14.6486471]
[1751298777880,0.01,2474.4,2474.3,16.53784021]
[1751298778088,0.01,2474.4,2474.3,26.53784021]
[1751298778399,0.01,2474.4,2474.3,26.73944021]
[1751298779205,1.59428943,2476.1,2475.9,14.58893533]
[1751298779364,1.1947545,2476.1,2475.9,0.8024]
[1751298779694,0.01,2476.2,2476.0,9.247]
[1751298779695,1.2047545,2476.2,2476.0,9.247]
[1751298780097,0.69371787,2476.2,2475.9,0.8024]
[1751298780402,4.03877545,2476.0,2475.6,2.8226]
[1751298780609,4.03904543,2475.9,2475.7,7.186]
[1751298780901,4.03904543,2475.9,2475.6,2.8226]
[1751298780902,4.03904543,2475.9,2475.8,7.186]
[1751298781311,0.01,2476.2,2475.8,7.186]
[1751298781605,0.01,2476.2,2475.6,0.7616]
[1751298781772,0.01,2476.2,2475.9,9.246]
[1751298781773,4.03891465,2476.0,2475.9,9.246]
[1751298782102,0.01,2476.2,2475.9,9.246]
[1751298782992,4.04854531,2476.2,2475.9,9.246]
[1751298783200,0.01,2476.2,2475.9,9.246]
[1751298783378,0.01,2476.2,2475.9,13.28490811]
[1751298783699,0.01,2476.2,2475.9,9.246]
[1751298783880,4.04855792,2476.2,2476.0,0.93951679]
[1751298784077,4.03878482,2476.0,2475.7,1.16716475]
[1751298784406,4.03885627,2476.0,2475.8,9.244]
[1751298784601,4.03893533,2475.9,2475.8,9.244]
[1751298784764,0.01,2476.2,2475.9,0.55]
[1751298784969,4.04854181,2476.2,2475.9,0.55]
[1751298785509,4.04853982,2476.2,2475.9,0.55]
[1751298785678,0.01,2476.2,2475.9,0.55]
[1751298785879,4.03860938,2476.1,2475.9,0.55]
[1751298786416,0.01,2476.2,2475.9,0.55]
[1751298786573,4.03871594,2476.1,2475.9,0.55]
[1751298787277,4.03900824,2475.9,2475.6,0.7616]
[1751298787495,4.03886095,2476.0,2475.7,9.243]
[1751298787670,4.04856071,2476.2,2475.7,2.06]
[1751298787867,4.03864405,2476.1,2475.6,0.7616]
[1751298788103,4.03926162,2475.7,2475.6,0.7616]
[1751298788299,4.03926162,2475.7,2475.6,10.0036]
[1751298789429,4.03926162,2475.7,2475.6,2.06]
[1751298789628,0.41485607,2476.2,2475.3,0.7989]
[1751298789629,4.03942478,2475.6,2475.3,0.7989]
[1751298789790,4.03926162,2475.7,2475.6,7.182]
[1751298790150,4.03975115,2475.4,2475.3,0.7989]
[1751298790304,4.03930351,2475.7,2474.8,5.59685859]
[1751298790305,4.03942478,2475.6,2474.9,1.16716475]
[1751298790606,4.04001451,2475.3,2475.0,9.242]
[1751298791185,4.0398328,2475.4,2475.1,0.55]
[1751298791400,4.03936607,2475.7,2475.3,0.55]
[1751298791593,4.03949665,2475.6,2475.4,7.181]
[1751298791891,4.03958796,2475.5,2475.4,7.181]
[1751298792507,4.03951644,2475.6,2475.4,7.181]
[1751298792681,4.039337,2475.7,2475.4,7.181]
[1751298793007,4.03906402,2475.9,2475.4,8.59071471]
[1751298793310,4.03954683,2475.6,2475.4,1.40971471]
[1751298793603,4.03954683,2475.6,2475.4,0.55]
[1751298793779,4.03942478,2475.6,2475.5,7.181]
[1751298794780,4.03958796,2475.5,2475.4,2.06]
[1751298795017,4.03958796,2475.5,2475.4,9.241]
[1751298796911,0.7816,2475.7,2474.9,0.7671]
[1751298797078,4.04024079,2475.1,2475.0,0.93815922]
[1751298797413,4.04024079,2475.1,2475.0,8.11815922]
[1751298797725,4.04024079,2475.1,2474.9,2.8271]
[1751298797726,4.04040404,2475.0,2474.9,2.8271]
[1751298797925,4.04040404,2475.0,2474.9,1.70585182]
[1751298798105,4.04033143,2475.1,2474.9,10.94585182]
[1751298798106,4.04029578,2475.1,2474.9,10.94585182]
[1751298798310,4.04024079,2475.1,2475.0,0.93875182]
[1751298798633,4.04024079,2475.1,2475.0,8.11875182]
[1751298798927,4.04073056,2474.8,2474.7,0.02]
[1751298799127,4.04073056,2474.8,2474.7,7.2]
[1751298800258,4.52149152,2475.7,2474.7,7.2]
[1751298800259,0.7636,2475.4,2474.7,7.2]
[1751298800405,10.0,2475.5,2474.8,0.7617]
[1751298800604,4.03942478,2475.6,2474.8,0.7617]
[1751298800817,4.0400095,2475.3,2474.9,9.237]
[1751298801005,4.03951973,2475.6,2475.0,4.59031928]
[1751298801212,4.03960608,2475.5,2475.1,4.04014249]
[1751298801422,4.03985268,2475.4,2475.0,0.55]
[1751298801627,4.03991435,2475.3,2474.9,0.55]
[1751298801823,4.04016739,2475.2,2475.0,9.237]
[1751298802036,4.04024079,2475.1,2475.0,9.237]
[1751298802339,4.04000006,2475.3,2475.0,10.17840386]
[1751298802535,4.04000006,2475.3,2475.0,9.237]
[1751298802701,4.0398799,2475.4,2475.0,9.237]
[1751298803217,4.0396285,2475.5,2475.0,13.2773961]
[1751298803531,4.0396285,2475.5,2475.1,8.12170747]
[1751298803738,4.0396285,2475.5,2475.1,7.18]
[1751298804110,0.7636,2476.0,2475.2,0.55]
[1751298804336,4.0396621,2475.5,2475.2,0.55]
[1751298804539,14.038957,2475.9,2474.9,1.36876475]
[1751298804540,4.04035038,2475.1,2474.9,1.36876475]
[1751298804705,4.04035038,2475.1,2475.0,0.94170064]
[1751298804906,4.04073056,2474.8,2474.7,0.02]
[1751298805134,4.04073056,2474.8,2474.7,0.96196248]
[1751298805519,4.04073056,2474.8,2474.7,8.14096248]
[1751298806241,4.0406182,2474.9,2474.7,8.14096248]
[1751298806537,4.0406182,2474.9,2474.8,0.94196248]
[1751298806719,4.04044349,2475.0,2474.8,0.94196248]
[1751298806921,4.04044349,2475.0,2474.7,7.199]
[1751298807117,4.04067412,2474.9,2474.8,7.179]
[1751298808751,4.04051317,2475.0,2474.8,7.179]
[1751298808915,4.04056729,2474.9,2474.8,7.179]
[1751298809243,4.04056729,2474.9,2474.8,8.12160558]
[1751298809944,0.8179,2475.7,2475.1,0.55]
[1751298810240,4.03950309,2475.6,2475.2,7.178]
[1751298810441,4.03893839,2475.9,2475.2,9.235]
[1751298810610,4.03976971,2475.4,2475.2,9.235]
[1751298810937,4.03976971,2475.4,2475.3,0.94215149]
[1751298811544,4.04024079,2475.1,2475.0,2.8686]
[1751298811723,4.04024079,2475.1,2475.0,10.98910603]
[1751298812118,4.03996966,2475.3,2475.0,10.98910603]
[1751298812320,4.03996966,2475.3,2475.1,0.94250603]
[1751298812535,4.03996966,2475.3,2475.2,0.94250603]
[1751298813946,4.03957632,2475.6,2475.2,0.94250603]
[1751298814130,4.03975115,2475.4,2475.3,8.11950603]
[1751298814331,0.01,2475.7,2475.3,8.11950603]
[1751298814533,4.03948889,2475.6,2475.4,0.94250603]
[1751298814731,4.04932104,2475.7,2475.3,7.177]
[1751298815044,4.04927919,2475.7,2475.4,0.94240067]
[1751298815251,0.01,2475.7,2475.3,11.21681823]
[1751298815453,0.01,2475.7,2475.4,0.94259133]
[1751298815626,0.01,2475.7,2475.5,0.94259133]
[1751298815823,0.01,2475.7,2475.6,8.11859133]
[1751298816029,4.04926162,2475.7,2475.6,8.11859133]
[1751298816234,0.01,2475.7,2475.6,8.11859133]
[1751298816619,4.04926162,2475.7,2475.6,8.11859133]
[1751298817032,0.01,2475.7,2475.6,8.11859133]
[1751298817754,4.04926162,2475.7,2475.6,8.11859133]
[1751298818473,0.01,2475.7,2475.6,10.72559133]
[1751298818617,0.01,2475.7,2475.6,12.42546694]
[1751298819141,0.01,2475.7,2475.6,10.94689133]
[1751298819768,4.04926162,2475.7,2475.6,10.17559133]
[1751298820054,0.01,2475.7,2475.6,10.17259133]
[1751298820466,4.04926162,2475.7,2475.6,10.17259133]
[1751298822267,0.01,2475.7,2475.6,10.17259133]
[1751298822463,0.01,2475.7,2475.6,12.11449963]
[1751298822880,0.01,2475.7,2475.6,17.32108916]
[1751298823183,0.01,2475.7,2475.6,16.70392441]
[1751298823676,0.01,2475.7,2475.6,12.66449963]
[1751298823878,0.01,2475.7,2475.6,10.17159133]
[1751298824255,4.04926162,2475.7,2475.6,10.17059133]
[1751298824779,0.01,2475.7,2475.6,10.17059133]
[1751298824984,4.04926162,2475.7,2475.6,10.17059133]
[1751298825463,0.01,2475.7,2475.6,10.17059133]
[1751298827966,4.04926162,2475.7,2475.6,0.94259133]
[1751298828172,4.04926162,2475.7,2475.6,8.11059133]
[1751298828371,0.01,2475.7,2475.6,8.11059133]
[1751298829686,0.01,2475.7,2475.6,12.15001611]
[1751298829881,0.01,2475.7,2475.6,8.11059133]
[1751298830784,0.01,2475.7,2475.6,12.70001611]
[1751298830984,0.01,2475.7,2475.6,8.66059133]
[1751298831579,0.01,2475.7,2475.6,9.8390832]
[1751298831781,0.01,2475.7,2475.6,2.1210832]
[1751298831990,4.04926162,2475.7,2475.6,10.15859133]
[1751298832786,0.01,2475.7,2475.6,10.70859133]
[1751298833091,4.04926162,2475.7,2475.6,10.70859133]
[1751298833275,0.01,2475.7,2475.6,10.15859133]
[1751298833586,4.04926162,2475.7,2475.6,10.15859133]
[1751298833781,4.04926162,2475.7,2475.6,0.94259133]
[1751298833985,4.04926162,2475.7,2475.6,8.10759133]
[1751298834372,4.04926162,2475.7,2475.6,0.94259133]
[1751298834373,4.85809855,2475.7,2475.6,0.94259133]
[1751298834886,4.85809855,2475.7,2475.6,7.165]
[1751298835083,4.85809855,2475.7,2475.6,8.10752869]
[1751298835084,4.04926162,2475.7,2475.6,8.10752869]
[1751298835319,4.04926162,2475.7,2475.6,8.10755776]
[1751298835600,0.01,2475.7,2475.6,7.164]
[1751298835901,4.04926162,2475.7,2475.6,7.164]
[1751298837097,4.03991435,2475.3,2475.2,1.17849187]
[1751298837406,4.03991435,2475.3,2475.2,11.33622046]
[1751298837614,4.03983284,2475.4,2475.2,11.33622046]
[1751298837777,4.03991435,2475.3,2475.2,10.39249187]
[1751298837975,4.03991435,2475.3,2475.2,10.15814532]
[1751298838303,4.03991435,2475.3,2475.2,2.12263719]
[1751298838498,4.03991435,2475.3,2475.2,9.28563719]
[1751298838693,4.03991435,2475.3,2475.2,2.12263719]
[1751298838694,4.84788189,2475.3,2475.2,2.12263719]
[1751298839024,4.84788189,2475.3,2475.2,8.10714532]
[1751298839216,4.84788189,2475.3,2475.2,0.94414532]
[1751298839383,4.84788189,2475.3,2475.2,8.10714532]
[1751298839578,4.03991117,2475.4,2475.2,8.10714532]
[1751298839784,4.03991117,2475.4,2475.3,0.94414532]
[1751298840116,4.03991117,2475.4,2475.3,8.10614532]
[1751298841113,4.03991117,2475.4,2475.3,0.94414532]
[1751298841474,4.03991117,2475.4,2475.3,8.10514532]
[1751298842184,6.30991117,2475.4,2475.3,8.10514532]
[1751298844791,6.30975115,2475.4,2475.3,8.10514532]
[1751298845588,6.30975115,2475.4,2475.3,0.94414532]
[1751298845788,6.30975115,2475.4,2475.3,8.10314532]
[1751298846621,4.03951394,2475.6,2475.3,8.10314532]
[1751298846822,0.01,2475.7,2475.4,1.76484532]
[1751298846998,0.01,2475.7,2475.5,0.94414532]
[1751298846999,4.03955398,2475.6,2475.5,0.94414532]
[1751298847317,4.04024079,2475.1,2475.0,2.05]
[1751298847520,4.04024079,2475.1,2475.0,10.15341039]
[1751298848018,4.04024079,2475.1,2475.0,0.94541039]
[1751298848219,4.04024079,2475.1,2475.0,8.10341039]
[1751298849725,0.7831,2475.6,2475.0,9.28190226]
[1751298849726,4.04002261,2475.3,2475.0,9.28190226]
[1751298849925,4.04002261,2475.3,2475.1,0.94541039]
[1751298850098,4.03991435,2475.3,2475.2,0.94541039]
[1751298850500,4.03984013,2475.4,2475.2,0.94541039]
[1751298850731,4.03984013,2475.4,2475.3,8.10141039]
[1751298851599,4.81194013,2475.4,2475.3,0.94541039]
[1751298851802,4.04040404,2475.0,2474.9,3.22849187]
[1751298851996,4.04040404,2475.0,2474.9,2.99476778]
[1751298852230,4.04040404,2475.0,2474.9,0.94476778]
[1751298852397,4.04040404,2475.0,2474.9,8.09976778]
[1751298853010,4.04040404,2475.0,2474.9,0.94476778]
[1751298853205,4.84847216,2475.0,2474.9,8.09976778]
[1751298853532,4.04032941,2475.1,2474.9,8.1001475]
[1751298853697,4.04025269,2475.1,2475.0,0.9451475]
[1751298854107,4.04025269,2475.1,2475.0,8.1001475]
[1751298854533,4.04025269,2475.1,2474.7,2.07]
[1751298854534,4.04073056,2474.8,2474.7,2.07]
[1751298854702,4.04073056,2474.8,2474.7,10.16999489]
[1751298854902,4.04070684,2474.9,2474.7,10.16999489]
[1751298855101,0.7721,2475.4,2474.8,0.94499489]
[1751298855312,0.7721,2475.4,2474.9,0.94499489]
[1751298855313,4.04035627,2475.1,2474.9,0.94499489]
[1751298855527,4.04035627,2475.1,2475.0,8.09899489]
[1751298855834,4.04024079,2475.1,2475.0,8.09899489]
[1751298856028,4.04016281,2475.2,2475.0,8.09899489]
[1751298856331,4.04024079,2475.1,2475.0,7.154]
[1751298856524,4.04024079,2475.1,2475.0,8.09906625]
[1751298856933,4.04024079,2475.1,2475.0,8.09806625]
[1751298857104,4.04024079,2475.1,2475.0,7.153]
[1751298861443,4.04024079,2475.1,2475.0,0.9453535]
[1751298861644,4.04024079,2475.1,2474.7,0.02]
[1751298861645,4.04073056,2474.8,2474.7,0.02]
[1751298861816,4.82093056,2474.8,2474.7,0.02]
[1751298862316,7.09093056,2474.8,2474.7,0.02]
[1751298863338,4.04105714,2474.6,2474.5,7.15]
[1751298863534,4.04105714,2474.6,2474.5,8.09590441]
[1751298864350,2.27,2474.8,2474.5,8.09590441]
[1751298864536,4.04089384,2474.7,2474.6,0.94590441]
[1751298864742,6.31081377,2474.8,2474.6,0.94590441]
[1751298864922,6.31081377,2474.8,2474.7,0.94590441]
[1751298865442,2.27,2474.8,2474.7,0.94590441]
[1751298865755,2.27,2475.1,2474.8,4.04065499]
[1751298865944,2.27,2475.2,2474.9,8.09390441]
[1751298866115,6.31017728,2475.2,2475.0,0.94590441]
[1751298866447,2.27,2475.2,2474.9,11.18848873]
[1751298866647,2.27,2475.2,2475.0,0.94603859]
[1751298866953,2.27,2475.2,2474.9,7.148]
[1751298866954,2.27,2475.2,2474.9,11.18848285]
[1751298867140,2.27,2475.2,2475.0,0.94570791]
[1751298867445,6.30983482,2475.4,2474.9,11.18848285]
[1751298867647,4.03993419,2475.3,2475.0,0.94585462]
[1751298867848,4.03993419,2475.3,2475.1,0.94585462]
[1751298868151,4.03993419,2475.3,2475.2,0.94563193]
[1751298868519,6.30980697,2475.4,2475.2,0.94563193]
[1751298868721,2.27,2475.4,2475.3,7.134]
[1751298868920,2.27,2475.6,2475.3,7.9345]
[1751298869122,0.01,2475.7,2475.3,14.01333427]
[1751298869321,0.01,2475.7,2475.4,4.03967175]
[1751298869625,0.01,2475.7,2475.5,4.03949266]
[1751298870431,0.01,2475.7,2475.6,5.41222478]
[1751298871320,0.01,2475.7,2475.6,6.35755166]
[1751298871525,0.01,2475.7,2475.6,7.41742562]
[1751298872526,0.01,2476.2,2475.6,12.55520084]
[1751298872863,0.01,2476.2,2476.1,15.3409091]
[1751298873168,0.01,2476.2,2476.1,24.5219091]
[1751298873582,0.01,2476.2,2476.1,25.46565859]
[1751298873737,0.01,2476.2,2476.1,11.69604949]
[1751298874067,0.01,2476.2,2476.1,19.9323]
[1751298874373,0.01,2476.2,2476.1,10.12337655]
[1751298874540,0.01,2476.2,2476.1,10.1232019]
[1751298874887,4.04852225,2476.2,2476.1,0.9432019]
[1751298875070,4.04852225,2476.2,2476.1,8.0832019]
[1751298875765,0.01,2476.2,2476.1,8.0822019]
[1751298876074,4.048446,2476.2,2476.1,8.0822019]
[1751298876842,0.01,2476.2,2476.1,8.0822019]
[1751298877159,0.01,2476.2,2476.1,7.139]
[1751298877361,4.048446,2476.2,2476.1,7.139]
[1751298877866,0.01,2476.2,2476.1,7.139]
[1751298878073,0.01,2476.2,2475.8,4.83287945]
[1751298878074,4.04846282,2476.2,2475.8,10.0]
[1751298878250,4.04846282,2476.2,2475.9,11.294942]
[1751298878445,4.04846282,2476.2,2476.0,0.94145013]
[1751298878640,4.04846282,2476.2,2476.1,0.94145013]
[1751298879276,0.01,2476.2,2476.1,0.94145013]
[1751298879475,4.048446,2476.2,2476.1,0.94145013]
[1751298880373,0.01,2476.2,2475.9,9.175]
[1751298880673,4.04852701,2476.2,2476.0,0.93993149]
[1751298880970,0.01,2476.2,2476.1,0.93993149]
[1751298882271,0.01,2476.2,2476.1,4.5886091]
[1751298883565,0.01,2476.2,2476.1,0.55]
[1751298884365,0.01,2476.2,2476.1,9.169]
[1751298885087,0.01,2476.2,2476.1,2.038]
[1751298885386,0.01,2476.2,2476.1,9.169]
[1751298886554,4.048446,2476.2,2476.1,9.169]
[1751298886762,0.01,2476.2,2476.1,9.169]
[1751298888468,0.01,2476.2,2475.7,0.7763]
[1751298888469,4.03886871,2476.0,2475.7,0.7763]
[1751298888688,4.03886871,2476.0,2475.9,2.038]
[1751298889471,6.30886871,2476.0,2475.9,2.038]
[1751298889975,2.27,2476.0,2475.7,0.7763]
[1751298890178,6.30884356,2476.0,2475.9,7.127]
[1751298890376,7.10075223,2476.0,2475.9,7.127]
[1751298890575,4.03927966,2475.7,2475.5,1.17849187]
[1751298890781,4.03926162,2475.7,2475.6,0.93950618]
[1751298890974,4.03926162,2475.7,2475.6,10.08850618]
[1751298890975,6.30926162,2475.7,2475.6,10.08850618]
[1751298891378,2.27,2475.7,2475.6,10.08850618]
[1751298891757,2.27,2475.7,2475.6,10.83940618]
[1751298892156,6.30926162,2475.7,2475.6,10.08750618]
[1751298892961,2.27,2475.7,2475.6,10.08750618]
[1751298893694,6.30926162,2475.7,2475.6,0.93950618]
[1751298893994,6.30926162,2475.7,2475.6,2.96350618]
[1751298893995,7.34410134,2475.7,2475.6,2.96350618]
[1751298894162,8.15670134,2475.7,2475.6,0.93950618]
[1751298894365,8.15670134,2475.7,2475.0,2.31661967]
[1751298894366,4.04007756,2475.2,2475.0,2.31661967]
[1751298894711,4.04007756,2475.2,2475.1,10.089131]
[1751298895287,4.04007756,2475.2,2475.1,8.064131]
[1751298895671,4.0398278,2475.4,2475.1,10.52399619]
[1751298895870,4.0398278,2475.4,2475.2,2.12044508]
[1751298896188,4.0398278,2475.4,2475.3,0.942131]
[1751298896595,4.03966722,2475.5,2475.3,8.064131]
[1751298896903,2.27,2475.7,2475.4,0.942131]
[1751298897081,4.03910954,2475.8,2475.5,0.942131]
[1751298897269,4.03929529,2475.7,2475.6,7.121]
[1751298897911,6.30901633,2475.9,2475.6,7.121]
[1751298898484,4.03911319,2475.8,2475.6,7.121]
[1751298898684,4.03923722,2475.8,2475.6,7.121]
[1751298898908,6.30901793,2475.9,2475.6,7.121]
[1751298899305,6.30901793,2475.9,2475.7,0.94404578]
[1751298899602,4.03909847,2475.8,2475.5,2.025]
[1751298899804,4.03942478,2475.6,2475.5,2.025]
[1751298900005,4.03991435,2475.3,2475.2,2.025]
[1751298900213,4.03984795,2475.4,2475.2,2.96946805]
[1751298900422,4.03959337,2475.5,2475.3,0.94446805]
[1751298900609,4.16653963,2475.9,2475.4,8.06346805]
[1751298900610,0.7791,2475.8,2475.4,8.06346805]
[1751298900784,4.03955619,2475.6,2475.5,0.94446805]
[1751298901487,2.27,2475.6,2475.5,0.94446805]
[1751298901687,6.30942478,2475.6,2475.5,0.94446805]
[1751298902211,4.0389672,2475.9,2475.5,1.69526805]
[1751298902417,4.0389672,2475.9,2475.6,0.94446805]
[1751298902718,4.0389672,2475.9,2475.7,8.06146805]
[1751298902937,4.03893533,2475.9,2475.7,7.117]
[1751298903126,2.27,2476.0,2475.7,7.117]
[1751298903309,2.27,2476.0,2475.8,0.9440998]
[1751298903511,4.03888046,2476.0,2475.7,7.117]
[1751298903746,4.03894812,2475.9,2475.7,7.117]
[1751298903948,2.27,2476.1,2475.7,7.117]
[1751298903949,4.03909847,2475.8,2475.7,7.117]
[1751298904145,4.03909847,2475.8,2475.7,8.06107169]
[1751298904853,4.03902608,2475.9,2475.7,8.06107169]
[1751298905136,4.03909847,2475.8,2475.7,7.117]
[1751298905439,4.03886703,2476.0,2475.7,8.06097013]
[1751298905613,2.27,2476.1,2475.7,7.117]
[1751298906121,4.03885333,2476.0,2475.7,7.117]
[1751298906324,2.27,2476.1,2476.0,4.03877221]
[1751298906528,0.01,2476.2,2476.1,0.55]
[1751298906706,0.01,2476.2,2476.1,8.60741754]
[1751298906910,0.01,2476.2,2476.1,12.64602664]
[1751298907341,0.01,2476.2,2476.1,13.82434072]
[1751298907510,0.01,2476.2,2476.1,15.86973891]
[1751298908214,0.01,2476.2,2476.1,16.27374896]
[1751298908652,0.01,2476.2,2476.1,16.07133891]
[1751298908854,0.01,2476.2,2476.1,14.89302483]
[1751298909145,0.01,2476.2,2476.1,14.89309699]
[1751298910758,0.01,2476.2,2476.1,16.44931666]
[1751298911851,0.01,2476.2,2476.1,16.65404146]
[1751298913256,0.01,2476.2,2476.1,26.65404146]
[1751298913424,0.01,2476.2,2476.1,28.2146513]
[1751298914079,0.01,2476.2,2476.1,25.88032179]
[1751298914362,0.01,2476.2,2476.1,28.23592539]
[1751298914538,2.27,2476.5,2476.4,4.58811985]
[1751298914739,2.28,2476.7,2476.5,4.58786834]
[1751298914940,2.28,2476.7,2476.6,9.22705201]
[1751298915140,2.28,2476.7,2476.6,8.0494897]
[1751298915663,0.01,2476.7,2476.6,10.23935201]
[1751298915863,0.01,2476.7,2476.6,10.78935201]
[1751298916060,0.01,2476.7,2476.6,15.27419197]
[1751298919037,0.01,2476.7,2476.6,25.27419197]
[1751298920133,0.01,2477.1,2477.0,15.3787417]
[1751298920366,0.01,2477.1,2477.0,36.82082609]
[1751298920858,0.01,2477.1,2477.0,46.92382609]
[1751298921058,0.01,2477.1,2477.0,50.24976229]
[1751298924049,0.01,2477.7,2477.5,4.03622241]
[1751298924261,0.01,2477.7,2477.6,9.8566]
[1751298924459,0.01,2477.7,2477.6,13.89276402]
[1751298929647,0.01,2477.7,2477.6,23.89276402]
[1751298929970,0.01,2477.7,2477.6,27.17746679]
[1751298930137,0.01,2477.7,2477.6,27.96706679]
[1751298930632,0.01,2477.7,2477.6,18.86206679]
[1751298930833,0.01,2477.7,2477.6,39.13106148]
[1751298931065,0.01,2477.7,2477.6,23.62007933]
[1751298931246,0.01,2477.7,2477.6,26.71976221]
[1751298931657,0.01,2477.7,2477.6,27.65630325]
[1751298932241,4.04609046,2477.7,2477.3,0.7896]
[1751298932460,0.01,2477.7,2477.4,10.030907]
[1751298932662,0.01,2477.7,2477.4,9.094]
[1751298932943,0.01,2477.7,2477.4,13.13041927]
[1751298933145,0.01,2477.7,2477.6,0.55]
[1751298933355,0.01,2477.7,2477.3,0.7896]
[1751298933558,4.03670991,2477.3,2477.2,2.008]
[1751298933763,4.79600991,2477.3,2477.2,9.093]
[1751298934150,4.79600991,2477.3,2477.2,10.0309273]
[1751298935140,0.7593,2477.3,2477.2,10.0309273]
[1751298935750,0.8065,2477.6,2477.2,10.0309273]
[1751298936042,4.03633192,2477.5,2477.3,0.9379273]
[1751298936244,4.03633192,2477.5,2477.4,7.084]
[1751298936474,4.03641393,2477.5,2477.4,7.083]
[1751298937063,4.03641393,2477.5,2477.4,8.02257174]
[1751298937773,4.03632694,2477.5,2477.4,8.02257174]
[1751298938074,3.0765,2477.6,2477.4,8.02257174]
[1751298938075,2.27,2477.6,2477.4,8.02257174]
[1751298938277,2.27,2477.6,2477.5,0.93957174]
[1751298939559,2.27,2477.6,2477.5,2.11391098]
[1751298939764,4.04608128,2477.7,2477.5,0.93957174]
[1751298939973,4.04608128,2477.7,2477.6,8.01957174]
[1751298940361,0.01,2477.7,2477.6,8.01957174]
[1751298941077,4.04600113,2477.7,2477.6,8.01957174]
[1751298941286,4.93274867,2477.7,2477.6,8.01957174]
[1751298941481,4.04600113,2477.7,2477.6,8.01957174]
[1751298941784,2.28,2477.7,2477.6,8.01957174]
[1751298942153,6.31600113,2477.7,2477.6,8.01957174]
[1751298942643,6.31600113,2477.7,2477.6,0.93957174]
[1751298942844,6.31600113,2477.7,2477.6,8.01657174]
[1751298943851,2.28,2477.7,2477.6,8.01657174]
[1751298944245,6.31600113,2477.7,2477.6,8.01657174]